[Event "Early-Titled-Tuesday-Blitz-May-28-2024"]
[Site "Chess.com"]
[Date "2024.05.28"]
[Round "1"]
[White "biveklama"]
[Black "DarZay"]
[Result "1-0"]
[WhiteElo "2617"]
[BlackElo "2305"]
[TimeControl "180+1"]
[EndTime "8:08:07 PDT"]
[Termination "biveklama won by resignation"]

1. e4 {[%clk 0:03:00.9]} 1... c5 {[%clk 0:02:59.4]} 2. Nf3 {[%clk 0:03:00.8]}
2... Nc6 {[%clk 0:02:59.2]} 3. Bb5 {[%clk 0:03:00.4]} 3... g6 {[%clk 0:02:58.6]}
4. Bxc6 {[%clk 0:02:59.9]} 4... dxc6 {[%clk 0:02:58.1]} 5. h3 {[%clk 0:02:59.1]}
5... Bg7 {[%clk 0:02:57.5]} 6. d3 {[%clk 0:02:59.7]} 6... Nf6 {[%clk 0:02:41.4]}
7. Nc3 {[%clk 0:02:57.7]} 7... Nd7 {[%clk 0:02:40.4]} 8. O-O {[%clk 0:02:55.1]}
8... O-O {[%clk 0:02:39.8]} 9. Be3 {[%clk 0:02:53.9]} 9... b6 {[%clk 0:02:38.5]}
10. Qd2 {[%clk 0:02:49.1]} 10... Re8 {[%clk 0:02:35.9]} 11. Bh6 {[%clk
0:02:48.7]} 11... Nf8 {[%clk 0:02:34.7]} 12. Bxg7 {[%clk 0:02:47.8]} 12... Kxg7
{[%clk 0:02:34.6]} 13. a3 {[%clk 0:02:45.9]} 13... Ne6 {[%clk 0:02:33.8]} 14. b4
{[%clk 0:02:44.5]} 14... cxb4 {[%clk 0:02:32.2]} 15. axb4 {[%clk 0:02:44.4]}
15... Nd4 {[%clk 0:02:31.9]} 16. Nxd4 {[%clk 0:02:40.8]} 16... Qxd4 {[%clk
0:02:31.1]} 17. Ne2 {[%clk 0:02:36.7]} 17... Qd6 {[%clk 0:02:26.4]} 18. Qc3+
{[%clk 0:02:30.3]} 18... e5 {[%clk 0:02:25.4]} 19. f4 {[%clk 0:02:28.6]} 19...
Bd7 {[%clk 0:02:23]} 20. Ra3 {[%clk 0:02:17.9]} 20... f6 {[%clk 0:02:18]} 21.
fxe5 {[%clk 0:02:15.3]} 21... Qxe5 {[%clk 0:02:16]} 22. Qxe5 {[%clk 0:02:14.5]}
22... Rxe5 {[%clk 0:02:07.4]} 23. Rfa1 {[%clk 0:02:15.4]} 23... a5 {[%clk
0:02:06.5]} 24. Nd4 {[%clk 0:01:58.6]} 24... f5 {[%clk 0:01:46.1]} 25. exf5
{[%clk 0:01:50.1]} 25... gxf5 {[%clk 0:01:44.8]} 26. Nb3 {[%clk 0:01:17.4]}
26... Re2 {[%clk 0:01:39.5]} 27. bxa5 {[%clk 0:01:11.6]} 27... bxa5 {[%clk
0:01:36.2]} 28. Rxa5 {[%clk 0:01:11.2]} 28... Rxa5 {[%clk 0:01:20.5]} 29. Rxa5
{[%clk 0:01:10.5]} 29... Kg6 {[%clk 0:01:17.6]} 30. Nd4 {[%clk 0:01:09.1]} 30...
Re8 {[%clk 0:00:59.4]} 31. Ra7 {[%clk 0:01:06.6]} 31... Rd8 {[%clk 0:00:58.9]}
32. Rc7 {[%clk 0:01:05]} 32... Kg5 {[%clk 0:00:42.9]} 33. Nxc6 {[%clk
0:01:01.5]} 33... Bxc6 {[%clk 0:00:38.9]} 34. Rxc6 {[%clk 0:01:02.4]} 34... Re8
{[%clk 0:00:38.7]} 35. Kf2 {[%clk 0:01:01.7]} 35... Ra8 {[%clk 0:00:36.6]} 36.
Rc7 {[%clk 0:00:54.8]} 36... h5 {[%clk 0:00:33.5]} 37. g3 {[%clk 0:00:23.7]}
37... Ra1 {[%clk 0:00:28.4]} 38. Rc4 {[%clk 0:00:22.1]} 38... Rh1 {[%clk
0:00:26.2]} 39. h4+ {[%clk 0:00:22.3]} 39... Kf6 {[%clk 0:00:25.9]} 40. Kg2
{[%clk 0:00:20.8]} 40... Re1 {[%clk 0:00:25.4]} 41. Rc6+ {[%clk 0:00:19.6]}
41... Ke5 {[%clk 0:00:24.5]} 42. Rc5+ {[%clk 0:00:20.1]} 42... Kf6 {[%clk
0:00:23.6]} 43. Kf2 {[%clk 0:00:19.9]} 43... Rh1 {[%clk 0:00:22.5]} 44. c4
{[%clk 0:00:18.7]} 44... Rd1 {[%clk 0:00:20.6]} 45. Rd5 {[%clk 0:00:18.2]} 45...
Ke6 {[%clk 0:00:19.7]} 46. Kf3 {[%clk 0:00:18.1]} 46... Rf1+ {[%clk 0:00:19.2]}
47. Ke3 {[%clk 0:00:18.3]} 47... Rg1 {[%clk 0:00:19]} 48. Kf4 {[%clk 0:00:18.5]}
48... Rg2 {[%clk 0:00:17.2]} 49. Re5+ {[%clk 0:00:16.3]} 49... Kd6 {[%clk
0:00:16.6]} 50. Rxf5 {[%clk 0:00:16.7]} 50... Rd2 {[%clk 0:00:15.7]} 51. Rd5+
{[%clk 0:00:16.2]} 51... Ke6 {[%clk 0:00:16]} 52. Re5+ {[%clk 0:00:16.7]} 52...
Kf6 {[%clk 0:00:15.8]} 53. Rf5+ {[%clk 0:00:17.1]} 53... Kg6 {[%clk 0:00:16.1]}
54. Rd5 {[%clk 0:00:17.4]} 54... Rf2+ {[%clk 0:00:15.4]} 55. Ke4 {[%clk
0:00:17.8]} 55... Rf1 {[%clk 0:00:14.5]} 56. c5 {[%clk 0:00:18.1]} 56... Rg1
{[%clk 0:00:13.6]} 57. c6 {[%clk 0:00:17.9]} 57... Rxg3 {[%clk 0:00:13.3]} 58.
Rg5+ {[%clk 0:00:17.8]} 58... Rxg5 {[%clk 0:00:13.2]} 59. hxg5 {[%clk
0:00:18.7]} 59... Kxg5 {[%clk 0:00:10.7]} 60. c7 {[%clk 0:00:19.3]} 1-0

[Event "Early-Titled-Tuesday-Blitz-May-28-2024"]
[Site "Chess.com"]
[Date "2024.05.28"]
[Round "1"]
[White "FlemingA"]
[Black "Aygehovit1992"]
[Result "0-1"]
[WhiteElo "2465"]
[BlackElo "2818"]
[TimeControl "180+1"]
[EndTime "8:08:11 PDT"]
[Termination "Aygehovit1992 won by checkmate"]

1. e4 {[%clk 0:02:59.6]} 1... c5 {[%clk 0:02:56.7]} 2. Nf3 {[%clk 0:02:59.2]}
2... e6 {[%clk 0:02:56.4]} 3. Qe2 {[%clk 0:02:58.6]} 3... Nc6 {[%clk 0:02:55.8]}
4. g3 {[%clk 0:02:57]} 4... e5 {[%clk 0:02:52.3]} 5. c3 {[%clk 0:02:54.4]} 5...
Nf6 {[%clk 0:02:52.1]} 6. Na3 {[%clk 0:02:52.3]} 6... Be7 {[%clk 0:02:49.6]} 7.
Nc4 {[%clk 0:02:49.4]} 7... Nxe4 {[%clk 0:02:46.4]} 8. Ncxe5 {[%clk 0:02:38.7]}
8... d5 {[%clk 0:02:34.4]} 9. Bg2 {[%clk 0:02:26.9]} 9... O-O {[%clk 0:02:33.2]}
10. O-O {[%clk 0:02:27.1]} 10... Re8 {[%clk 0:02:33]} 11. d3 {[%clk 0:02:24.2]}
11... Nf6 {[%clk 0:02:27.1]} 12. d4 {[%clk 0:02:16.9]} 12... Qb6 {[%clk
0:02:14.3]} 13. Nxc6 {[%clk 0:02:11.4]} 13... bxc6 {[%clk 0:02:12.8]} 14. Qc2
{[%clk 0:02:07]} 14... Ne4 {[%clk 0:01:40.2]} 15. Bf4 {[%clk 0:02:01.5]} 15...
Bf5 {[%clk 0:01:37.3]} 16. Qb3 {[%clk 0:01:57.4]} 16... c4 {[%clk 0:01:33.7]}
17. Qxb6 {[%clk 0:01:53.2]} 17... axb6 {[%clk 0:01:34.6]} 18. Ne5 {[%clk
0:01:53.8]} 18... Rec8 {[%clk 0:01:31]} 19. a3 {[%clk 0:01:52.7]} 19... f6
{[%clk 0:01:30.2]} 20. Nf3 {[%clk 0:01:49.3]} 20... Kf7 {[%clk 0:01:19.4]} 21.
Nd2 {[%clk 0:01:49.2]} 21... g5 {[%clk 0:00:54.1]} 22. Be3 {[%clk 0:01:46.3]}
22... Ra5 {[%clk 0:00:36.7]} 23. h3 {[%clk 0:01:36.5]} 23... Nxd2 {[%clk
0:00:36.5]} 24. Bxd2 {[%clk 0:01:36.6]} 24... Rb5 {[%clk 0:00:37.1]} 25. Bc1
{[%clk 0:01:19]} 25... h5 {[%clk 0:00:37.2]} 26. Re1 {[%clk 0:01:09.3]} 26...
Bd6 {[%clk 0:00:37.3]} 27. Kh2 {[%clk 0:01:00.1]} 27... h4 {[%clk 0:00:34.1]}
28. Kg1 {[%clk 0:00:39.3]} 28... hxg3 {[%clk 0:00:33.9]} 29. fxg3 {[%clk
0:00:40.2]} 29... Bxg3 {[%clk 0:00:33.5]} 30. Rf1 {[%clk 0:00:40.9]} 30... Bd3
{[%clk 0:00:33.2]} 31. Rf3 {[%clk 0:00:41.5]} 31... Bh4 {[%clk 0:00:29.3]} 32.
Bf1 {[%clk 0:00:34]} 32... Bxf1 {[%clk 0:00:23.1]} 33. Rxf1 {[%clk 0:00:26.3]}
33... Re8 {[%clk 0:00:23.3]} 34. a4 {[%clk 0:00:21.9]} 34... Rb3 {[%clk
0:00:23.4]} 35. a5 {[%clk 0:00:20.3]} 35... Ra8 {[%clk 0:00:23.6]} 36. a6 {[%clk
0:00:20.5]} 36... Rb5 {[%clk 0:00:23.7]} 37. Kg2 {[%clk 0:00:12.9]} 37... Ra5
{[%clk 0:00:22.5]} 38. Rxa5 {[%clk 0:00:13.5]} 38... bxa5 {[%clk 0:00:22.9]} 39.
Kf3 {[%clk 0:00:14.3]} 39... Rxa6 {[%clk 0:00:22.9]} 40. Kg4 {[%clk 0:00:15]}
40... Kg6 {[%clk 0:00:23.5]} 41. Rf3 {[%clk 0:00:13.7]} 41... a4 {[%clk
0:00:22.3]} 42. Re3 {[%clk 0:00:14.1]} 42... Rb6 {[%clk 0:00:21.5]} 43. Re6
{[%clk 0:00:14]} 43... a3 {[%clk 0:00:15]} 44. bxa3 {[%clk 0:00:14.4]} 44... Rb1
{[%clk 0:00:15.2]} 45. Be3 {[%clk 0:00:08.9]} 45... Re1 {[%clk 0:00:14.9]} 46.
Kf3 {[%clk 0:00:08.6]} 46... Kf5 {[%clk 0:00:03.4]} 47. Rxc6 {[%clk 0:00:08.8]}
47... Rh1 {[%clk 0:00:02.6]} 48. Rd6 {[%clk 0:00:07.1]} 48... Rxh3+ {[%clk
0:00:02.7]} 49. Ke2 {[%clk 0:00:07.2]} 49... Kg4 {[%clk 0:00:02.4]} 50. Rxd5
{[%clk 0:00:06.9]} 50... f5 {[%clk 0:00:02.5]} 51. a4 {[%clk 0:00:05.1]} 51...
f4 {[%clk 0:00:03.1]} 52. Bg1 {[%clk 0:00:04.6]} 52... f3+ {[%clk 0:00:02.8]}
53. Kf1 {[%clk 0:00:03.9]} 53... Rh1 {[%clk 0:00:03.3]} 54. Re5 {[%clk
0:00:02.5]} 54... f2 {[%clk 0:00:03.6]} 55. Re4+ {[%clk 0:00:03.2]} 55... Kf3
{[%clk 0:00:03.5]} 56. Rxh4 {[%clk 0:00:03.8]} 56... gxh4 {[%clk 0:00:03.8]} 57.
d5 {[%clk 0:00:02.9]} 57... Rxg1# {[%clk 0:00:04.2]} 0-1

[Event "Early-Titled-Tuesday-Blitz-May-28-2024"]
[Site "Chess.com"]
[Date "2024.05.28"]
[Round "1"]
[White "chessfatbear"]
[Black "xakevicius91"]
[Result "1/2-1/2"]
[WhiteElo "2823"]
[BlackElo "2480"]
[TimeControl "180+1"]
[EndTime "8:08:14 PDT"]
[Termination "Game drawn by repetition"]

1. e4 {[%clk 0:02:55.7]} 1... c5 {[%clk 0:02:52.4]} 2. Nf3 {[%clk 0:02:48.9]}
2... e6 {[%clk 0:02:52.7]} 3. d4 {[%clk 0:02:47.2]} 3... cxd4 {[%clk 0:02:53.6]}
4. Nxd4 {[%clk 0:02:48]} 4... Nc6 {[%clk 0:02:54.3]} 5. Nc3 {[%clk 0:02:47.7]}
5... Qc7 {[%clk 0:02:54.2]} 6. Be2 {[%clk 0:02:47.2]} 6... a6 {[%clk 0:02:53.1]}
7. O-O {[%clk 0:02:46.6]} 7... Nf6 {[%clk 0:02:52.4]} 8. Nxc6 {[%clk 0:02:45.1]}
8... bxc6 {[%clk 0:02:48.6]} 9. b3 {[%clk 0:02:38.5]} 9... Be7 {[%clk
0:02:44.6]} 10. Bb2 {[%clk 0:02:38.3]} 10... d5 {[%clk 0:02:45.2]} 11. Bd3
{[%clk 0:02:35.5]} 11... O-O {[%clk 0:02:41.6]} 12. Qf3 {[%clk 0:02:34.9]} 12...
h6 {[%clk 0:02:27.1]} 13. Rfe1 {[%clk 0:02:25.4]} 13... Bb7 {[%clk 0:02:00.4]}
14. e5 {[%clk 0:02:22.9]} 14... Nd7 {[%clk 0:01:59.3]} 15. Ne2 {[%clk
0:02:21.3]} 15... c5 {[%clk 0:01:54.3]} 16. Nf4 {[%clk 0:02:14.3]} 16... c4
{[%clk 0:01:36.8]} 17. bxc4 {[%clk 0:01:52]} 17... dxc4 {[%clk 0:01:37.7]} 18.
Be4 {[%clk 0:01:52.4]} 18... Bxe4 {[%clk 0:01:27.1]} 19. Rxe4 {[%clk 0:01:53.3]}
19... Rab8 {[%clk 0:01:23.6]} 20. Bc3 {[%clk 0:01:52.8]} 20... Bb4 {[%clk
0:01:19.1]} 21. Nh5 {[%clk 0:01:41]} 21... Bxc3 {[%clk 0:01:12.5]} 22. Qxc3
{[%clk 0:01:41.9]} 22... Qb7 {[%clk 0:01:01.8]} 23. Rae1 {[%clk 0:01:34.8]}
23... Qb2 {[%clk 0:00:45.3]} 24. Qg3 {[%clk 0:01:24.3]} 24... g6 {[%clk
0:00:39.7]} 25. Nf4 {[%clk 0:00:57.1]} 25... Kh7 {[%clk 0:00:39.6]} 26. h4
{[%clk 0:00:54.1]} 26... Qxc2 {[%clk 0:00:35.2]} 27. Rd4 {[%clk 0:00:50.8]}
27... Nc5 {[%clk 0:00:29.1]} 28. Kh2 {[%clk 0:00:33.5]} 28... Rb2 {[%clk
0:00:27.1]} 29. Re2 {[%clk 0:00:29.1]} 29... Qc1 {[%clk 0:00:26.5]} 30. Rxb2
{[%clk 0:00:25.1]} 30... Qxb2 {[%clk 0:00:27.4]} 31. Rxc4 {[%clk 0:00:24.6]}
31... Qxe5 {[%clk 0:00:25.6]} 32. Nxg6 {[%clk 0:00:18.9]} 32... Qxg3+ {[%clk
0:00:22.7]} 33. Kxg3 {[%clk 0:00:18.9]} 33... Ne4+ {[%clk 0:00:15.4]} 34. Rxe4
{[%clk 0:00:18.2]} 34... Kxg6 {[%clk 0:00:16.3]} 35. Ra4 {[%clk 0:00:15]} 35...
Ra8 {[%clk 0:00:16.4]} 36. Ra5 {[%clk 0:00:15.7]} 36... Ra7 {[%clk 0:00:16.7]}
37. h5+ {[%clk 0:00:15.2]} 37... Kf6 {[%clk 0:00:16.6]} 38. Kf4 {[%clk
0:00:15.8]} 38... Re7 {[%clk 0:00:14.7]} 39. g4 {[%clk 0:00:15.7]} 39... Ra7
{[%clk 0:00:14]} 40. Ke4 {[%clk 0:00:15.2]} 40... Rc7 {[%clk 0:00:12.9]} 41.
Rxa6 {[%clk 0:00:14.4]} 41... Rc4+ {[%clk 0:00:13.6]} 42. Kf3 {[%clk 0:00:14.5]}
42... Rc3+ {[%clk 0:00:13.4]} 43. Kf4 {[%clk 0:00:08.8]} 43... Rc4+ {[%clk
0:00:13.4]} 44. Kg3 {[%clk 0:00:09.3]} 44... Rc3+ {[%clk 0:00:09.8]} 45. f3
{[%clk 0:00:09.7]} 45... Rc2 {[%clk 0:00:10]} 46. a4 {[%clk 0:00:09.1]} 46...
Ra2 {[%clk 0:00:10.2]} 47. a5 {[%clk 0:00:09.7]} 47... Kg5 {[%clk 0:00:07]} 48.
Ra8 {[%clk 0:00:07]} 48... Kf6 {[%clk 0:00:07.3]} 49. a6 {[%clk 0:00:06.7]}
49... e5 {[%clk 0:00:05.6]} 50. a7 {[%clk 0:00:02.8]} 50... Kg7 {[%clk
0:00:05.8]} 51. Kh4 {[%clk 0:00:03.1]} 51... Rh2+ {[%clk 0:00:04.8]} 52. Kg3
{[%clk 0:00:03.7]} 52... Ra2 {[%clk 0:00:05.7]} 53. Kh3 {[%clk 0:00:04]} 53...
Kf6 {[%clk 0:00:03.7]} 54. Kg3 {[%clk 0:00:03.2]} 54... Kg7 {[%clk 0:00:03.9]}
1/2-1/2

[Event "Early-Titled-Tuesday-Blitz-May-28-2024"]
[Site "Chess.com"]
[Date "2024.05.28"]
[Round "1"]
[White "Nitzan_Steinberg"]
[Black "yobdc"]
[Result "1-0"]
[WhiteElo "2906"]
[BlackElo "2509"]
[TimeControl "180+1"]
[EndTime "8:08:17 PDT"]
[Termination "Nitzan_Steinberg won on time"]

1. d4 {[%clk 0:03:00.9]} 1... Nf6 {[%clk 0:02:53.4]} 2. c4 {[%clk 0:03:00.8]}
2... g6 {[%clk 0:02:53]} 3. Nc3 {[%clk 0:02:58.5]} 3... Bg7 {[%clk 0:02:52.9]}
4. e4 {[%clk 0:02:59]} 4... d6 {[%clk 0:02:53.3]} 5. Nf3 {[%clk 0:02:59.1]} 5...
O-O {[%clk 0:02:53.6]} 6. Be2 {[%clk 0:02:58.1]} 6... e5 {[%clk 0:02:54.1]} 7.
O-O {[%clk 0:02:55.5]} 7... exd4 {[%clk 0:02:54.4]} 8. Nxd4 {[%clk 0:02:55.5]}
8... Re8 {[%clk 0:02:54.9]} 9. f3 {[%clk 0:02:52.3]} 9... c6 {[%clk 0:02:55.4]}
10. Kh1 {[%clk 0:02:43.8]} 10... d5 {[%clk 0:02:50.8]} 11. exd5 {[%clk 0:02:30]}
11... cxd5 {[%clk 0:02:50.5]} 12. c5 {[%clk 0:02:30.5]} 12... Nc6 {[%clk
0:02:48.7]} 13. Ncb5 {[%clk 0:02:19.6]} 13... Nh5 {[%clk 0:02:35.1]} 14. Nxc6
{[%clk 0:01:43.6]} 14... bxc6 {[%clk 0:02:29.5]} 15. Nd6 {[%clk 0:01:43.8]}
15... Qh4 {[%clk 0:01:21]} 16. Qe1 {[%clk 0:01:43.3]} 16... Ng3+ {[%clk
0:00:38.1]} 17. Qxg3 {[%clk 0:01:43.2]} 17... Qxg3 {[%clk 0:00:38.4]} 18. hxg3
{[%clk 0:01:44.1]} 18... Rxe2 {[%clk 0:00:38.3]} 19. Rb1 {[%clk 0:01:44.8]}
19... Ba6 {[%clk 0:00:33]} 20. a3 {[%clk 0:01:35.9]} 20... Rc2 {[%clk
0:00:13.3]} 21. Re1 {[%clk 0:01:33.8]} 21... Rxc5 {[%clk 0:00:13.3]} 22. Bf4
{[%clk 0:01:28.1]} 22... Rc2 {[%clk 0:00:11]} 23. b4 {[%clk 0:01:22.8]} 23... h6
{[%clk 0:00:10.2]} 24. Re7 {[%clk 0:01:22.3]} 24... Bf8 {[%clk 0:00:10.3]} 25.
Rc7 {[%clk 0:01:19]} 25... g5 {[%clk 0:00:09.7]} 26. Be5 {[%clk 0:01:01.5]}
26... f6 {[%clk 0:00:09.9]} 27. Bxf6 {[%clk 0:00:48.7]} 27... Bxd6 {[%clk
0:00:10.2]} 28. Rg7+ {[%clk 0:00:49.4]} 28... Kf8 {[%clk 0:00:10.5]} 29. f4
{[%clk 0:00:49.8]} 29... Re8 {[%clk 0:00:10.3]} 30. fxg5 {[%clk 0:00:45.7]}
30... hxg5 {[%clk 0:00:10.5]} 31. Rh7 {[%clk 0:00:46.2]} 31... Ree2 {[%clk
0:00:10.4]} 32. Rf1 {[%clk 0:00:38.3]} 32... Rf2 {[%clk 0:00:10.4]} 33. Rxf2
{[%clk 0:00:25.4]} 33... Rxf2 {[%clk 0:00:11.3]} 34. Bd4 {[%clk 0:00:25.6]}
34... Rf1+ {[%clk 0:00:07.2]} 35. Kh2 {[%clk 0:00:25.7]} 35... Bd3 {[%clk
0:00:07]} 36. Rxa7 {[%clk 0:00:18.7]} 36... Rf7 {[%clk 0:00:04.9]} 37. Ra8+
{[%clk 0:00:16.3]} 37... Ke7 {[%clk 0:00:05.3]} 38. a4 {[%clk 0:00:09.1]} 38...
Rh7+ {[%clk 0:00:05.3]} 39. Kg1 {[%clk 0:00:09.7]} 39... Ke6 {[%clk 0:00:05.3]}
40. g4 {[%clk 0:00:07.8]} 40... Bg3 {[%clk 0:00:03.1]} 41. Re8+ {[%clk
0:00:07.2]} 41... Kd7 {[%clk 0:00:02.9]} 42. Re3 {[%clk 0:00:06.7]} 42... Bf4
{[%clk 0:00:01.2]} 43. Rxd3 {[%clk 0:00:06.9]} 43... Re7 {[%clk 0:00:01.2]} 44.
Rd1 {[%clk 0:00:06.7]} 44... Re2 {[%clk 0:00:01.2]} 45. a5 {[%clk 0:00:06.1]}
45... Ra2 {[%clk 0:00:01.1]} 46. Rb1 {[%clk 0:00:04.1]} 46... Kc8 {[%clk
0:00:01]} 47. Kf1 {[%clk 0:00:04.3]} 47... Kb7 {[%clk 0:00:01]} 48. Re1 {[%clk
0:00:04]} 48... Ka6 {[%clk 0:00:01]} 49. Bc5 {[%clk 0:00:04.4]} 49... Bg3 {[%clk
0:00:01]} 50. Rd1 {[%clk 0:00:03.6]} 50... Rc2 {[%clk 0:00:01]} 51. Be3 {[%clk
0:00:03.3]} 51... Be5 {[%clk 0:00:01.2]} 52. Bxg5 {[%clk 0:00:03.6]} 52... Rb2
{[%clk 0:00:01.5]} 53. Bd2 {[%clk 0:00:03.9]} 53... Bg3 {[%clk 0:00:01.4]} 54.
g5 {[%clk 0:00:04.2]} 54... d4 {[%clk 0:00:01.7]} 55. Ke2 {[%clk 0:00:04.6]}
55... Be5 {[%clk 0:00:02.2]} 56. Kd3 {[%clk 0:00:05.1]} 56... Rb3+ {[%clk
0:00:02.5]} 57. Ke4 {[%clk 0:00:05.3]} 57... Bg7 {[%clk 0:00:03.2]} 58. Bf4
{[%clk 0:00:05.5]} 58... Rg3 {[%clk 0:00:03.8]} 59. Bxg3 {[%clk 0:00:05.7]}
59... Kb5 {[%clk 0:00:04.5]} 60. Be5 {[%clk 0:00:06]} 60... Bf8 {[%clk
0:00:04.1]} 61. Rxd4 {[%clk 0:00:05.9]} 1-0

[Event "Early-Titled-Tuesday-Blitz-May-28-2024"]
[Site "Chess.com"]
[Date "2024.05.28"]
[Round "1"]
[White "francyIM"]
[Black "Daaksboy"]
[Result "1-0"]
[WhiteElo "2818"]
[BlackElo "2462"]
[TimeControl "180+1"]
[EndTime "8:08:28 PDT"]
[Termination "francyIM won by checkmate"]

1. Nf3 {[%clk 0:03:00.9]} 1... Nf6 {[%clk 0:02:59.6]} 2. c4 {[%clk 0:02:59.3]}
2... g6 {[%clk 0:02:59.4]} 3. b4 {[%clk 0:02:57.7]} 3... Bg7 {[%clk 0:02:59]} 4.
Bb2 {[%clk 0:02:57.6]} 4... O-O {[%clk 0:02:58.9]} 5. e3 {[%clk 0:02:56.9]} 5...
d6 {[%clk 0:02:59.3]} 6. d4 {[%clk 0:02:56.5]} 6... Nbd7 {[%clk 0:02:49]} 7. Be2
{[%clk 0:02:56.4]} 7... c5 {[%clk 0:02:45.1]} 8. dxc5 {[%clk 0:02:53.6]} 8...
dxc5 {[%clk 0:02:44.9]} 9. b5 {[%clk 0:02:54.5]} 9... Ne4 {[%clk 0:02:35.6]} 10.
Bxg7 {[%clk 0:02:52.8]} 10... Kxg7 {[%clk 0:02:36.5]} 11. O-O {[%clk 0:02:52.5]}
11... a6 {[%clk 0:02:16.7]} 12. Qc2 {[%clk 0:02:51.9]} 12... Nd6 {[%clk
0:02:14.2]} 13. Qb2+ {[%clk 0:02:49.7]} 13... Kg8 {[%clk 0:02:11.8]} 14. Nc3
{[%clk 0:02:49.5]} 14... Nb6 {[%clk 0:02:01.7]} 15. bxa6 {[%clk 0:02:22.6]}
15... bxa6 {[%clk 0:01:43.6]} 16. Qa3 {[%clk 0:02:19.3]} 16... Qc7 {[%clk
0:01:41.3]} 17. Na4 {[%clk 0:02:12.1]} 17... Nxa4 {[%clk 0:01:34.6]} 18. Qxa4
{[%clk 0:02:13]} 18... Bd7 {[%clk 0:01:34.6]} 19. Qc2 {[%clk 0:02:06.4]} 19...
Bf5 {[%clk 0:01:33.1]} 20. Qc1 {[%clk 0:02:02]} 20... Rab8 {[%clk 0:01:30.4]}
21. Nd2 {[%clk 0:02:01]} 21... Qa5 {[%clk 0:01:27.5]} 22. Nb3 {[%clk 0:01:58.4]}
22... Qc7 {[%clk 0:01:17.5]} 23. Qc3 {[%clk 0:01:54.6]} 23... Ne4 {[%clk
0:01:11.7]} 24. Qc1 {[%clk 0:01:54.4]} 24... Nd6 {[%clk 0:01:11.1]} 25. Rd1
{[%clk 0:01:51.4]} 25... Rb4 {[%clk 0:01:06.8]} 26. Rd5 {[%clk 0:01:45.4]} 26...
Be6 {[%clk 0:00:53.4]} 27. Rxc5 {[%clk 0:01:41.3]} 27... Qb6 {[%clk 0:00:52.9]}
28. Re5 {[%clk 0:01:22.1]} 28... Bxc4 {[%clk 0:00:51.5]} 29. Bxc4 {[%clk
0:01:20.4]} 29... Rxc4 {[%clk 0:00:51.6]} 30. Qd1 {[%clk 0:01:18]} 30... Qc7
{[%clk 0:00:48.4]} 31. h3 {[%clk 0:01:06.4]} 31... Ne4 {[%clk 0:00:42.5]} 32.
Ra5 {[%clk 0:00:56.2]} 32... Rd8 {[%clk 0:00:33.6]} 33. Qf3 {[%clk 0:00:49.6]}
33... Nd2 {[%clk 0:00:19.6]} 34. Nxd2 {[%clk 0:00:49.1]} 34... Rxd2 {[%clk
0:00:19]} 35. Rxa6 {[%clk 0:00:48]} 35... Rcc2 {[%clk 0:00:18]} 36. Rf1 {[%clk
0:00:46.3]} 36... Rxa2 {[%clk 0:00:17.7]} 37. Qa8+ {[%clk 0:00:45.9]} 37... Rd8
{[%clk 0:00:16.8]} 38. Rxa2 {[%clk 0:00:44.5]} 38... Rxa8 {[%clk 0:00:16.5]} 39.
Rxa8+ {[%clk 0:00:45.4]} 39... Kg7 {[%clk 0:00:17.2]} 40. g3 {[%clk 0:00:45.7]}
40... Qc6 {[%clk 0:00:16.7]} 41. Rfa1 {[%clk 0:00:45]} 41... Qd5 {[%clk
0:00:16.3]} 42. h4 {[%clk 0:00:45.1]} 42... h5 {[%clk 0:00:15.7]} 43. R8a7
{[%clk 0:00:45.5]} 43... Qe4 {[%clk 0:00:14.2]} 44. Rd7 {[%clk 0:00:43.8]} 44...
Kf6 {[%clk 0:00:13]} 45. Ra6+ {[%clk 0:00:43.3]} 45... Kg7 {[%clk 0:00:11.1]}
46. Raa7 {[%clk 0:00:43.2]} 46... Kf6 {[%clk 0:00:11.1]} 47. Rxe7 {[%clk
0:00:41.5]} 47... Qxe7 {[%clk 0:00:10.7]} 48. Rxe7 {[%clk 0:00:42.4]} 48... Kxe7
{[%clk 0:00:10.4]} 49. e4 {[%clk 0:00:42]} 49... Ke6 {[%clk 0:00:10.2]} 50. Kg2
{[%clk 0:00:40.4]} 50... Ke5 {[%clk 0:00:09.6]} 51. Kf3 {[%clk 0:00:40.3]} 51...
f5 {[%clk 0:00:08.3]} 52. exf5 {[%clk 0:00:39.8]} 52... Kxf5 {[%clk 0:00:05.5]}
53. Ke3 {[%clk 0:00:39.8]} 53... Ke5 {[%clk 0:00:03.9]} 54. f3 {[%clk 0:00:38]}
54... Ke6 {[%clk 0:00:03.7]} 55. Ke4 {[%clk 0:00:37.5]} 55... Kf6 {[%clk
0:00:03.7]} 56. Kf4 {[%clk 0:00:37.9]} 56... Kf7 {[%clk 0:00:03.8]} 57. Ke5
{[%clk 0:00:37.1]} 57... Ke7 {[%clk 0:00:03.9]} 58. f4 {[%clk 0:00:36.9]} 58...
Kf7 {[%clk 0:00:04.2]} 59. f5 {[%clk 0:00:37.5]} 59... Kg7 {[%clk 0:00:03.9]}
60. Ke6 {[%clk 0:00:37.7]} 60... gxf5 {[%clk 0:00:03.8]} 61. Kxf5 {[%clk
0:00:38.6]} 61... Kh6 {[%clk 0:00:03.8]} 62. Kf6 {[%clk 0:00:39.2]} 62... Kh7
{[%clk 0:00:04.1]} 63. Kg5 {[%clk 0:00:40.1]} 63... Kg7 {[%clk 0:00:04.6]} 64.
Kxh5 {[%clk 0:00:41]} 64... Kf6 {[%clk 0:00:05.2]} 65. Kh6 {[%clk 0:00:40.3]}
65... Kf5 {[%clk 0:00:06.1]} 66. h5 {[%clk 0:00:38]} 66... Ke4 {[%clk 0:00:07]}
67. Kg5 {[%clk 0:00:38]} 67... Kd5 {[%clk 0:00:07.9]} 68. h6 {[%clk 0:00:38.4]}
68... Kd6 {[%clk 0:00:08.8]} 69. h7 {[%clk 0:00:38.9]} 69... Kc5 {[%clk
0:00:09.7]} 70. h8=Q {[%clk 0:00:39.5]} 70... Kc4 {[%clk 0:00:09.4]} 71. Qe5
{[%clk 0:00:39.7]} 71... Kd3 {[%clk 0:00:10.3]} 72. Kf4 {[%clk 0:00:39.9]} 72...
Kc2 {[%clk 0:00:11.2]} 73. Qe3 {[%clk 0:00:39.6]} 73... Kb1 {[%clk 0:00:12.1]}
74. Qe2 {[%clk 0:00:39.8]} 74... Ka1 {[%clk 0:00:12.4]} 75. Ke3 {[%clk
0:00:40.3]} 75... Kb1 {[%clk 0:00:13.3]} 76. Kd3 {[%clk 0:00:40.8]} 76... Ka1
{[%clk 0:00:14.2]} 77. Kc3 {[%clk 0:00:41.5]} 77... Kb1 {[%clk 0:00:15.1]} 78.
Kb3 {[%clk 0:00:42.2]} 78... Ka1 {[%clk 0:00:16]} 79. Qf1# {[%clk 0:00:42.3]}
1-0